bitfinex-derivatives/quotes_BNBF0:USTF0_20250331
["timestamp","ask_amount","ask_price","bid_price","bid_amount"]
[1743420831021,0.883,592.08,591.92,0.27202672]
[1743420831218,0.883,592.08,591.93,0.27202672]
[1743420831415,0.883,592.08,591.79,0.29380601]
[1743420831616,0.883,592.08,591.8,0.27183328]
[1743420831822,0.883,592.08,591.81,0.27183328]
[1743420832022,0.883,592.08,591.82,0.27183328]
[1743420832223,0.883,592.08,591.83,0.27183328]
[1743420832415,0.883,592.08,591.84,0.27183328]
[1743420832722,0.883,592.08,591.85,0.27183328]
[1743420832915,0.883,592.08,591.86,0.27183328]
[1743420833116,0.883,592.08,591.87,0.60974532]
[1743420833320,0.883,592.08,591.88,0.60973961]
[1743420833520,0.883,592.08,591.89,0.6097339]
[1743420833721,0.883,592.08,591.9,0.60972819]
[1743420833921,0.883,592.08,591.91,0.27183328]
[1743420834126,0.883,592.08,591.92,0.27183328]
[1743420834317,0.883,592.08,591.93,0.60971106]
[1743420834519,0.883,592.08,591.94,0.60970536]
[1743420834715,0.883,592.08,591.95,0.60969965]
[1743420834919,0.883,592.08,591.96,0.60969394]
[1743420835116,0.883,592.08,591.97,0.60968823]
[1743420835324,0.883,592.08,591.98,0.60968253]
[1743420835522,0.883,592.08,591.99,0.60967682]
[1743420835721,0.883,592.08,592.0,0.60967111]
[1743420835917,0.883,592.08,592.01,0.60966541]
[1743420836120,0.883,592.08,592.02,0.6096597]
[1743420836316,0.883,592.08,592.03,0.60965399]
[1743420836536,0.883,592.08,592.04,0.60964829]
[1743420836822,0.883,592.08,592.05,0.60965096]
[1743420837023,0.883,592.08,592.06,0.27184166]
[1743420837222,0.883,592.08,592.07,0.33779789]
[1743420837419,0.883,592.08,592.07,0.60963955]
[1743420842725,0.901,592.19,592.07,0.60963955]
[1743420842931,0.901,592.19,592.08,0.27184166]
[1743420843129,0.901,592.19,592.07,0.33779789]
[1743420843332,0.901,592.19,592.08,0.27167153]
[1743420843527,0.901,592.19,592.09,0.27167153]
[1743420843728,0.901,592.19,592.1,0.27167153]
[1743420844026,0.901,592.19,592.11,0.27167153]
[1743420844529,0.901,592.19,592.12,0.27167153]
[1743420844730,0.901,592.19,592.13,0.27167153]
[1743420844931,0.901,592.19,592.14,0.27167153]
[1743420845131,0.901,592.19,592.15,0.27167153]
[1743420845326,0.901,592.19,592.16,0.27167153]
[1743420845726,0.901,592.19,592.17,0.27167153]
[1743420845929,0.901,592.19,592.18,0.27167153]
[1743420846130,0.901,592.19,592.18,0.60940667]
[1743420848526,0.901,592.19,592.18,0.33773514]
[1743420848730,0.901,592.19,592.18,0.60940582]
[1743420851426,0.609,592.33,592.18,0.60940582]
[1743420851625,0.609,592.33,592.19,0.60940012]
[1743420851824,0.609,592.33,592.2,0.27167068]
[1743420852131,0.609,592.33,592.21,0.60938871]
[1743420852332,0.609,592.33,592.22,0.27167068]
[1743420852829,0.609,592.33,592.21,0.33771803]
[1743420852830,0.609,592.33,592.23,0.27167068]
[1743420853132,0.609,592.33,592.24,0.60937161]
[1743420853333,0.609,592.33,592.25,0.60936591]
[1743420853632,0.609,592.33,592.26,0.6093602]
[1743420853833,0.609,592.33,592.27,0.6093545]
[1743420854033,0.609,592.33,592.28,0.6093488]
[1743420854233,0.609,592.33,592.29,0.6093431]
[1743420854435,0.609,592.33,592.3,0.33766672]
[1743420854636,0.609,592.33,592.31,0.27167068]
[1743420854932,0.609,592.33,592.32,0.33765532]
[1743420855135,0.609,592.33,592.32,0.609326]
[1743420855531,0.609,592.33,592.32,0.33765532]
[1743420855835,0.609,592.33,592.32,0.60933074]
[1743420861437,0.829,592.35,592.32,0.60933074]
[1743420861632,0.829,592.35,592.33,0.27167542]
[1743420863837,0.869,592.41,592.33,0.27167542]
[1743420870740,0.774,592.53,592.33,0.27167542]
[1743420871147,0.774,592.53,592.32,0.33765532]
[1743420871341,0.774,592.53,592.33,0.27186001]
[1743420878638,0.774,592.53,591.23,2.82711631]
[1743420878838,0.774,592.53,591.88,0.29370806]
[1743420879038,0.774,592.53,591.89,0.60976063]
[1743420879239,0.774,592.53,591.9,0.60975492]
[1743420879456,0.774,592.53,591.91,0.60974921]
[1743420879641,0.774,592.53,591.92,0.6097435]
[1743420879941,0.774,592.53,591.93,0.60973779]
[1743420880137,0.774,592.53,591.94,0.60973209]
[1743420880336,0.774,592.53,591.95,0.60972638]
[1743420880542,0.774,592.53,591.96,0.60972067]
[1743420880736,0.774,592.53,591.97,0.60971496]
[1743420880937,0.774,592.53,591.98,0.60970926]
[1743420881137,0.774,592.53,591.99,0.60970355]
[1743420881342,0.774,592.53,592.0,0.60969784]
[1743420881544,0.774,592.53,592.01,0.27186001]
[1743420881742,0.774,592.53,592.01,0.60969214]
[1743420881944,0.774,592.53,592.02,0.27186001]
[1743420883543,0.774,592.53,592.03,0.27192471]
[1743420883753,0.774,592.53,592.02,0.27192471]
[1743420883943,0.774,592.53,592.03,0.27192471]
[1743420884244,0.774,592.53,592.04,0.27192471]
[1743420884444,0.774,592.53,592.05,0.27192471]
[1743420884639,0.774,592.53,592.02,0.27192471]
[1743420884843,0.774,592.53,592.03,0.27192471]
[1743420885244,0.774,592.53,592.04,0.27192471]
[1743420885447,0.774,592.53,592.02,0.27192471]
[1743420885642,0.774,592.53,592.03,0.27192471]
[1743420885846,0.774,592.53,592.02,0.27192471]
[1743420886042,0.774,592.53,592.03,0.27192471]
[1743420886249,0.774,592.53,592.01,0.33783213]
[1743420886250,0.774,592.53,592.02,0.27192471]
[1743420886448,0.774,592.53,592.03,0.27192471]
[1743420886649,0.774,592.53,592.04,0.27192471]
[1743420886843,0.774,592.53,592.02,0.27192471]
[1743420887054,0.774,592.53,592.03,0.27192471]
[1743420887254,0.774,592.53,592.04,0.27192471]
[1743420887455,0.774,592.53,592.02,0.27192471]
[1743420887649,0.774,592.53,592.03,0.27192471]
[1743420887850,0.774,592.53,592.01,0.33783213]
[1743420888053,0.774,592.53,592.04,0.27191678]
[1743420888254,0.774,592.53,592.05,0.27191678]
[1743420888451,0.774,592.53,592.06,0.27191678]
[1743420888757,0.772,592.52,592.07,0.27191678]
[1743420888952,0.772,592.52,592.08,0.27191678]
[1743420889153,0.772,592.52,592.02,0.27191678]
[1743420889350,0.772,592.52,592.03,0.27191678]
[1743420889558,0.772,592.52,592.04,0.27191678]
[1743420889856,0.772,592.52,592.05,0.27191678]
[1743420890056,0.772,592.52,592.06,0.27191678]
[1743420890252,0.772,592.52,592.07,0.27191678]
[1743420890557,0.772,592.52,592.01,0.33783213]
[1743420890754,0.772,592.52,592.02,0.27191928]
[1743420890952,0.772,592.52,592.03,0.27191928]
[1743420891157,0.772,592.52,592.04,0.27191928]
[1743420891358,0.772,592.52,592.05,0.27191928]
[1743420891558,0.772,592.52,592.06,0.27191928]
[1743420891754,0.772,592.52,592.07,0.27191928]
[1743420891957,0.772,592.52,592.08,0.27191928]
[1743420892158,0.772,592.52,592.09,0.27191928]
[1743420892358,0.772,592.52,592.1,0.27191928]
[1743420892654,0.772,592.52,592.11,0.27191928]
[1743420892855,0.772,592.52,592.02,0.27191928]
[1743420893054,0.772,592.52,592.03,0.27191928]
[1743420893258,0.772,592.52,592.04,0.27191928]
[1743420893458,0.772,592.52,592.02,0.27191928]
[1743420893658,0.772,592.52,592.03,0.27191928]
[1743420893853,0.772,592.52,592.02,0.27191928]
[1743420894058,0.772,592.52,592.03,0.27193148]
[1743420894257,0.772,592.52,592.02,0.27193148]
[1743420894459,0.772,592.52,592.03,0.27193148]
[1743420894657,0.772,592.52,592.02,0.27193148]
[1743420894855,0.772,592.52,592.03,0.27193148]
[1743420895058,0.772,592.52,592.01,0.33783213]
[1743420895059,0.772,592.52,592.04,0.27193148]
[1743420895260,0.772,592.52,592.01,0.33783213]
[1743420895261,0.772,592.52,592.05,0.27193148]
[1743420895461,0.772,592.52,592.06,0.27193148]
[1743420895657,0.772,592.52,592.01,0.33783213]
[1743420895863,0.772,592.52,592.02,0.27196283]
[1743420896462,0.772,592.52,592.01,0.33783213]
[1743420896659,0.772,592.52,592.02,0.27196945]
[1743420897665,0.663,592.51,592.02,0.27196945]
[1743420905768,0.663,592.51,592.01,0.33783213]
[1743420905968,0.663,592.51,592.02,0.2720039]
[1743420906368,0.663,592.51,592.01,0.33783213]
[1743420906769,0.663,592.51,592.02,0.27195727]
[1743420907575,0.663,592.51,592.03,0.33782071]
[1743420907774,0.663,592.51,592.04,0.27189871]
[1743420907978,0.663,592.51,592.05,0.3378093]
[1743420908378,0.663,592.51,592.06,0.27189871]
[1743420911284,0.663,592.51,592.07,0.27191823]
[1743420911582,0.663,592.51,592.08,0.60971042]
[1743420911782,0.663,592.51,592.09,0.60970471]
[1743420911982,0.663,592.51,592.1,0.27191823]
[1743420915983,0.663,592.51,592.11,0.33777507]
[1743420916186,0.663,592.51,592.12,0.27191823]
[1743420916488,0.663,592.51,592.11,0.33777507]
[1743420916681,0.663,592.51,592.13,0.27184242]
[1743420916880,0.663,592.51,592.14,0.60960038]
[1743420917085,0.663,592.51,592.15,0.60959467]
[1743420917385,0.663,592.51,592.16,0.27184242]
[1743420918284,0.663,592.51,592.17,0.33774085]
[1743420918484,0.663,592.51,592.18,0.27184203]
[1743420918685,0.981,592.5,592.19,0.33772944]
[1743420918880,0.981,592.5,592.2,0.27184203]
[1743420919081,0.981,592.5,592.21,0.33771803]
[1743420919386,0.981,592.5,592.22,0.27184203]
[1743420919583,0.981,592.5,592.22,0.60955436]
[1743420919780,0.981,592.5,592.23,0.27184203]
[1743420921580,0.753,592.49,592.23,0.27184203]
[1743420923788,0.753,592.49,592.24,0.33770093]
[1743420924183,0.753,592.49,592.25,0.27184203]
[1743420924987,0.753,592.49,592.26,0.33768952]
[1743420925290,0.753,592.49,592.27,0.27184203]
[1743420925590,0.753,592.49,592.28,0.33767812]
[1743420925790,0.753,592.49,592.29,0.27184203]
[1743420926890,0.753,592.49,592.3,0.33766672]
[1743420927190,0.753,592.49,592.31,0.27184203]
[1743420927389,0.753,592.49,592.32,0.33765532]
[1743420927590,0.753,592.49,592.33,0.27184203]
[1743420927788,0.753,592.49,592.34,0.33764392]
[1743420927993,0.753,592.49,592.35,0.27184203]
[1743420928190,0.753,592.49,592.36,0.33763252]
[1743420928394,0.753,592.49,592.37,0.27184203]
[1743420928597,0.753,592.49,592.38,0.33762112]
[1743420928789,0.753,592.49,592.39,0.27169326]
[1743420928995,0.753,592.49,592.4,0.33760972]
[1743420929194,0.753,592.49,592.41,0.27169326]
[1743420929490,0.753,592.49,592.42,0.33759832]
[1743420929694,0.753,592.49,592.43,0.27169326]
[1743420929896,0.753,592.49,592.44,0.33758692]
[1743420930097,0.753,592.49,592.45,0.27169326]
[1743420930397,0.753,592.49,592.46,0.60926304]
[1743420930593,0.753,592.49,592.47,0.60925734]
[1743420930796,0.753,592.49,592.48,0.60925164]
[1743420932194,0.753,592.49,592.48,0.33756413]
[1743420932394,0.753,592.49,592.48,0.60924142]
[1743420932598,0.753,592.49,592.48,0.60922309]
[1743420935808,0.753,592.49,592.48,0.33756413]
[1743420936006,0.753,592.49,592.48,0.6092317]
[1743420941710,0.981,592.5,592.48,0.6092317]
[1743420941914,0.981,592.5,592.49,0.27166757]
[1743420942213,0.981,592.5,592.49,0.609226]
[1743420945823,0.775,592.58,592.49,0.609226]
[1743420946023,0.775,592.58,592.5,0.60922031]
[1743420946321,0.775,592.58,592.51,0.27166757]
[1743420946715,0.775,592.58,592.52,0.33754134]
[1743420946920,0.775,592.58,592.53,0.27166757]
[1743420947317,0.775,592.58,592.54,0.33752995]
[1743420947520,0.775,592.58,592.55,0.27166757]
[1743420947820,0.775,592.58,592.55,0.60919182]
[1743420948021,0.775,592.58,592.55,0.33752425]
[1743420948722,0.775,592.58,592.56,0.27164602]
[1743420952021,0.775,592.58,592.55,0.33752425]
[1743420952220,0.775,592.58,592.56,0.27168379]
[1743420954322,0.724,592.66,592.56,0.27168379]
[1743420959027,0.724,592.66,592.55,0.33752425]
[1743420959224,0.846,592.78,592.56,0.27168343]
[1743420959426,0.846,592.78,592.55,0.33752425]
[1743420959625,0.846,592.78,592.56,0.27168161]
[1743420962028,0.846,592.78,592.55,0.33752425]
[1743420962221,0.846,592.78,592.56,0.27168384]
[1743420962922,0.846,592.78,592.57,0.33751286]
[1743420963128,0.846,592.78,592.58,0.27168384]
[1743420963327,0.846,592.78,592.59,0.33750147]
[1743420963624,0.846,592.78,592.6,0.27168384]
[1743420965330,0.846,592.78,592.61,0.33749008]
[1743420965532,0.846,592.78,592.62,0.27168384]
[1743420966627,0.846,592.78,592.63,0.33747869]
[1743420966834,0.846,592.78,592.64,0.27168384]
[1743420967030,0.846,592.78,592.65,0.3374673]
[1743420967227,0.846,592.78,592.66,0.27168384]
[1743420967436,0.846,592.78,592.65,0.3374673]
[1743420967634,0.846,592.78,592.66,0.27155773]
[1743420968329,0.846,592.78,592.67,0.27155773]
[1743420968634,0.846,592.78,592.68,0.27155773]
[1743420968833,0.846,592.78,592.69,0.27155773]
[1743420969033,0.846,592.78,592.7,0.27155773]
[1743420969233,0.846,592.78,592.71,0.27155773]
[1743420969434,0.846,592.78,592.66,0.27155773]
[1743420969626,0.846,592.78,592.67,0.27155773]
[1743420969829,0.846,592.78,592.66,0.27155773]
[1743420970031,0.846,592.78,592.67,0.60901364]
[1743420970233,0.846,592.78,592.68,0.60900795]
[1743420970432,0.846,592.78,592.69,0.60900226]
[1743420970628,0.846,592.78,592.7,0.27155773]
[1743420970828,0.846,592.78,592.71,0.33743314]
[1743420971033,0.846,592.78,592.72,0.27155773]
[1743420971229,0.846,592.78,592.73,0.33742176]
[1743420971533,0.846,592.78,592.74,0.27155773]
[1743420971734,0.846,592.78,592.75,0.33741037]
[1743420971937,0.846,592.78,592.76,0.27155773]
[1743420972128,0.846,592.78,592.77,0.33739899]
[1743420972331,0.846,592.78,592.77,0.60895672]
[1743420975231,0.846,592.78,592.77,0.33739899]
[1743420975536,0.846,592.78,592.77,0.60889723]
[1743420981641,0.846,592.78,592.77,0.60896218]
[1743420983342,1.735,592.79,592.77,0.60896218]
[1743420983541,1.735,592.79,592.78,0.27156319]
[1743420984539,0.9,592.79,592.78,0.27156319]
[1743420991945,0.711,593.0,592.78,0.27156319]
[1743420994450,1.003,593.01,592.78,0.27156319]
[1743420994847,1.812,593.01,592.78,0.27156319]
[1743420996952,2.711,593.01,592.78,0.27156319]
[1743420999154,2.711,593.01,592.77,0.33739899]
[1743420999350,2.711,593.01,592.78,0.27163666]
[1743420999554,1.708,593.01,592.78,0.27163666]
[1743421002957,2.664,593.01,592.78,0.27163666]
[1743421004650,2.664,593.01,592.79,0.27163819]
[1743421004852,2.664,593.01,592.78,0.27163819]
[1743421007760,2.664,593.01,592.79,0.3373876]
[1743421008260,2.664,593.01,592.8,0.27154521]
[1743421008462,2.664,593.01,592.81,0.33737622]
[1743421008756,2.664,593.01,592.82,0.27153935]
[1743421008959,2.664,593.01,592.82,0.60890988]
[1743421009160,2.664,593.01,592.83,0.27153935]
[1743421009761,2.664,593.01,592.82,0.33737053]
[1743421009967,2.664,593.01,592.83,0.27153595]
[1743421011868,2.664,593.01,592.84,0.33735915]
[1743421012161,2.664,593.01,592.85,0.27153595]
[1743421012565,2.664,593.01,592.86,0.33734777]
[1743421012767,2.664,593.01,592.87,0.27153595]
[1743421012967,2.664,593.01,592.88,0.33733639]
[1743421013162,2.664,593.01,592.89,0.27153595]
[1743421013367,2.664,593.01,592.9,0.33732501]
[1743421013669,2.664,593.01,592.91,0.27153595]
[1743421013868,2.664,593.01,592.92,0.33731363]
[1743421014069,2.664,593.01,592.93,0.27153595]
[1743421014368,2.664,593.01,592.94,0.33730225]
[1743421014564,2.664,593.01,592.95,0.27153595]
[1743421015370,2.664,593.01,592.96,0.27144024]
[1743421015669,2.664,593.01,592.97,0.27144024]
[1743421015863,2.664,593.01,592.98,0.3372795]
[1743421016062,2.664,593.01,592.99,0.27144024]
[1743421016266,2.664,593.01,593.0,0.33726812]
[1743421016462,2.664,593.01,593.0,0.60870836]
[1743421017063,2.664,593.01,593.0,0.33726812]
[1743421017262,2.664,593.01,593.0,0.60866715]
[1743421020675,2.664,593.01,593.0,0.60866581]
[1743421021869,2.664,593.01,593.0,0.33726812]
[1743421022073,2.664,593.01,593.0,0.60866532]
[1743421023970,1.765,593.01,593.0,0.60866532]
[1743421025577,1.765,593.01,593.0,0.60865542]
[1743421032482,1.765,593.01,593.0,0.60865083]
[1743421032681,1.765,593.01,593.0,0.6086516]
[1743421036082,1.765,593.01,593.0,0.60864941]
[1743421037989,1.765,593.01,593.0,0.60865164]
[1743421046787,1.765,593.01,593.0,0.33726812]
[1743421046989,1.765,593.01,593.0,0.60855288]
[1743421047989,0.809,593.01,593.0,0.60855288]
[1743421052095,0.809,593.01,593.0,0.60857881]
[1743421053699,0.809,593.01,593.0,0.33726812]
[1743421053898,0.809,593.01,593.0,0.60858174]
[1743421055000,1.73,593.23,593.0,0.60858174]
[1743421055297,1.73,593.23,593.01,0.27131362]
[1743421055496,1.73,593.23,593.02,0.33725675]
[1743421055701,0.884,593.23,593.03,0.27131362]
[1743421055897,0.884,593.23,593.04,0.60855899]
[1743421056098,0.884,593.23,593.05,0.60855331]
[1743421056300,0.884,593.23,593.06,0.60854762]
[1743421056599,0.884,593.23,593.07,0.27131362]
[1743421056802,0.884,593.23,593.08,0.27131362]
[1743421056998,0.884,593.23,593.09,0.33721694]
[1743421057199,0.884,593.23,593.1,0.27131362]
[1743421057400,0.884,593.23,593.11,0.33720557]
[1743421057601,0.884,593.23,593.12,0.27131362]
[1743421057901,0.884,593.23,593.13,0.3371942]
[1743421058095,0.884,593.23,593.14,0.27131362]
[1743421058895,0.884,593.23,593.15,0.33718283]
[1743421059098,0.884,593.23,593.16,0.27131362]
[1743421060202,0.884,593.23,593.17,0.33717146]
[1743421060402,0.884,593.23,593.18,0.27131362]
[1743421060596,0.884,593.23,593.19,0.3371601]
[1743421060801,0.884,593.23,593.2,0.27131362]
[1743421061003,0.884,593.23,593.21,0.33714873]
[1743421061203,0.884,593.23,593.22,0.27131362]
[1743421061410,0.884,593.23,593.22,0.60845666]
[1743421062606,0.884,593.23,593.22,0.33714304]
[1743421062807,0.884,593.23,593.22,0.60842304]
[1743421063608,0.884,593.23,593.22,0.60842448]
[1743421066405,0.884,593.23,593.22,0.33714304]
[1743421066604,0.884,593.23,593.22,0.60842517]
[1743421068913,0.884,593.23,593.22,0.60840757]
[1743421070609,0.908,593.32,593.22,0.60840757]
[1743421070916,0.908,593.32,593.23,0.27126453]
[1743421071216,0.908,593.32,593.24,0.33713168]
[1743421071409,0.908,593.32,593.25,0.27126453]
[1743421071614,0.908,593.32,593.26,0.33712031]
[1743421071816,0.908,593.32,593.27,0.27124981]
[1743421072008,0.908,593.32,593.28,0.33710895]
[1743421072316,0.908,593.32,593.29,0.27124981]
[1743421072518,0.908,593.32,593.3,0.33709758]
[1743421072712,0.908,593.32,593.31,0.27124981]
[1743421072917,0.908,593.32,593.31,0.60834171]
[1743421073615,0.908,593.32,593.31,0.60836156]
[1743421080513,0.908,593.32,593.31,0.60837008]
[1743421081823,0.908,593.32,593.31,0.3370919]
[1743421082022,0.908,593.32,593.31,0.60835806]
[1743421085621,0.908,593.32,593.31,0.60832307]
[1743421088919,0.908,593.32,593.31,0.60831675]
[1743421090525,0.977,593.53,593.31,0.60831675]
[1743421090725,0.977,593.53,593.32,0.60831107]
[1743421090924,0.977,593.53,593.33,0.60830539]
[1743421091227,0.977,593.53,593.34,0.60829971]
[1743421091527,0.977,593.53,593.35,0.60829403]
[1743421091728,0.977,593.53,593.36,0.60828835]
[1743421091922,0.977,593.53,593.37,0.60828267]
[1743421092121,0.977,593.53,593.38,0.33705214]
[1743421092324,0.977,593.53,593.39,0.27122485]
[1743421092521,0.977,593.53,593.4,0.33704078]
[1743421092724,0.977,593.53,593.41,0.27122485]
[1743421092920,0.977,593.53,593.42,0.33702942]
[1743421093126,0.977,593.53,593.43,0.27122485]
[1743421093326,0.977,593.53,593.44,0.33701806]
[1743421093528,0.977,593.53,593.45,0.27122485]
[1743421093842,0.977,593.53,593.46,0.3370067]
[1743421094028,0.977,593.53,593.47,0.27122485]
[1743421094229,0.977,593.53,593.48,0.33699534]
[1743421094429,0.977,593.53,593.49,0.27122485]
[1743421094625,0.977,593.53,593.5,0.33698399]
[1743421094826,0.977,593.53,593.51,0.27122485]
[1743421095028,0.977,593.53,593.52,0.33697263]
[1743421095432,0.977,593.53,593.52,0.60819748]
[1743421097833,0.977,593.53,593.52,0.60818782]
[1743421104735,0.977,593.53,593.52,0.33697263]
[1743421104940,0.977,593.53,593.52,0.60820974]
[1743421106543,0.977,593.53,593.52,0.60821005]
[1743421110240,0.977,593.53,593.52,0.60821788]
[1743421113446,0.909,593.63,593.52,0.60821788]
[1743421113744,0.909,593.63,593.53,0.27124725]
[1743421115243,0.909,593.63,593.52,0.33697263]
[1743421115444,0.909,593.63,593.53,0.27124666]
[1743421123857,0.909,593.63,593.52,0.33697263]
[1743421124255,0.909,593.63,593.53,0.27120684]
[1743421125857,0.909,593.63,593.54,0.33696128]
[1743421126053,0.909,593.63,593.55,0.27120684]
[1743421126253,0.909,593.63,593.55,0.60816244]
[1743421126448,0.909,593.63,593.56,0.27120684]
[1743421129055,0.909,593.63,593.57,0.27124266]
[1743421129250,0.909,593.63,593.56,0.27124266]
[1743421129455,0.909,593.63,593.55,0.3369556]
[1743421129456,0.909,593.63,593.57,0.27124266]
[1743421129658,0.909,593.63,593.56,0.27124266]
[1743421129958,0.909,593.63,593.57,0.27124266]
[1743421130257,0.909,593.63,593.58,0.27124266]
[1743421130458,0.909,593.63,593.56,0.27124266]
[1743421130657,0.909,593.63,593.57,0.27124266]
[1743421130859,0.909,593.63,593.58,0.27124266]
[1743421131059,0.909,593.63,593.56,0.27124266]
[1743421131253,0.909,593.63,593.57,0.27124266]
[1743421131453,0.909,593.63,593.56,0.27124266]
[1743421131653,0.909,593.63,593.55,0.3369556]
[1743421131654,0.909,593.63,593.57,0.27124266]
[1743421131853,0.909,593.63,593.58,0.27124266]
[1743421132058,0.909,593.63,593.59,0.27124266]
[1743421132257,0.909,593.63,593.6,0.27124266]
[1743421132463,0.909,593.63,593.61,0.27124266]
[1743421132659,0.909,593.63,593.55,0.3369556]
[1743421132854,0.909,593.63,593.56,0.27125076]
[1743421141062,0.909,593.63,593.55,0.3369556]
[1743421141363,0.909,593.63,593.56,0.2712671]
[1743421142064,1.015,593.75,593.56,0.2712671]
[1743421142967,1.015,593.75,593.57,0.27126905]
[1743421143362,1.015,593.75,593.58,0.27126905]
[1743421143561,1.015,593.75,593.59,0.27126905]
[1743421143759,1.015,593.75,593.6,0.27126905]
[1743421143961,1.015,593.75,593.61,0.27126905]
[1743421144166,1.015,593.75,593.56,0.27126905]
[1743421144366,1.015,593.75,593.57,0.27126905]
[1743421144767,1.015,593.75,593.58,0.27126905]
[1743421145079,1.015,593.75,593.59,0.27126905]
[1743421145369,1.015,593.75,593.55,0.3369556]
[1743421145370,1.015,593.75,593.6,0.27126905]
[1743421145668,1.015,593.75,593.61,0.27126905]
[1743421145864,1.015,593.75,593.56,0.27126905]
[1743421146068,1.015,593.75,593.57,0.27126905]
[1743421146266,1.015,593.75,593.56,0.27126905]
[1743421146463,1.015,593.75,593.57,0.27126905]
[1743421146668,1.015,593.75,593.55,0.3369556]
[1743421146669,1.015,593.75,593.58,0.27126905]
[1743421146971,1.015,593.75,593.59,0.27126905]
[1743421147470,1.728,593.78,593.6,0.27126905]
[1743421147668,1.728,593.78,593.56,0.27126905]
[1743421147864,1.728,593.78,593.57,0.27126905]
[1743421148169,1.728,593.78,593.58,0.27126905]
[1743421148362,1.728,593.78,593.59,0.27126905]
[1743421148562,1.728,593.78,593.56,0.27126905]
[1743421149569,1.728,593.78,593.55,0.3369556]
[1743421149769,1.728,593.78,593.56,0.27120021]
[1743421150281,2.736,593.78,593.56,0.27120021]
[1743421153265,2.736,593.78,593.55,0.3369556]
[1743421153569,2.736,593.78,593.56,0.27119642]
[1743421156669,2.736,593.78,593.57,0.27119558]
[1743421156876,2.736,593.78,593.58,0.27119558]
[1743421157068,2.736,593.78,593.56,0.27119558]
[1743421158376,2.736,593.78,593.56,0.6081455]
[1743421158572,2.736,593.78,593.57,0.27119558]
[1743421162079,2.736,593.78,593.58,0.27123349]
[1743421162372,2.736,593.78,593.59,0.27123349]
[1743421162574,2.736,593.78,593.57,0.27123349]
[1743421162775,2.736,593.78,593.58,0.27123349]
[1743421162976,2.736,593.78,593.57,0.27123349]
[1743421163178,2.736,593.78,593.58,0.27123349]
[1743421163379,2.736,593.78,593.57,0.27123349]
[1743421163682,2.736,593.78,593.58,0.27123349]
[1743421163882,2.736,593.78,593.59,0.27123349]
[1743421164078,2.736,593.78,593.57,0.27123349]
[1743421164278,2.736,593.78,593.6,0.27123349]
[1743421164481,2.736,593.78,593.61,0.27123349]
[1743421164678,2.736,593.78,593.57,0.27123349]
[1743421167077,2.736,593.78,593.58,0.27123267]
[1743421167276,2.736,593.78,593.57,0.27123267]
[1743421167478,2.736,593.78,593.58,0.27123267]
[1743421167779,2.736,593.78,593.57,0.27123267]
[1743421167986,2.736,593.78,593.58,0.27123267]
[1743421168179,2.736,593.78,593.57,0.27123267]
[1743421169282,1.728,593.78,593.57,0.27123267]
[1743421169677,1.728,593.78,592.83,2.5552563]
[1743421169885,1.728,593.78,593.15,0.29308965]
[1743421170186,1.728,593.78,592.85,0.33735346]
[1743421170187,1.728,593.78,593.16,0.60844894]
[1743421170385,1.728,593.78,593.17,0.27127179]
[1743421171186,1.728,593.78,593.18,0.33716578]
[1743421171382,1.728,593.78,593.19,0.27127179]
[1743421171587,1.728,593.78,593.2,0.33715441]
[1743421171787,1.728,593.78,593.21,0.27127179]